bitfinex/quotes_BTCUSD_20250423
["timestamp","ask_amount","ask_price","bid_price","bid_amount"]
[1745425945331,0.001,93357.0,93356.0,0.21423368]
[1745425945592,0.002,93359.0,93358.0,0.21422909]
[1745425946030,0.001,93359.0,93358.0,0.87658908]
[1745425946473,0.001,93359.0,93358.0,0.72655808]
[1745425946697,0.001,93359.0,93358.0,0.69189308]
[1745425947021,0.001,93359.0,93358.0,1.03189308]
[1745425947103,0.001,93359.0,93358.0,1.03789308]
[1745425947324,0.001,93359.0,93358.0,1.09177608]
[1745425947979,0.003,93359.0,93358.0,1.02938508]
[1745425948190,0.001,93359.0,93358.0,1.02938508]
[1745425948400,0.001,93359.0,93358.0,1.02338508]
[1745425948614,0.001,93359.0,93358.0,1.03338508]
[1745425949082,0.001,93359.0,93358.0,1.03938508]
[1745425949284,0.001,93359.0,93358.0,0.83335923]
[1745425949540,0.001,93359.0,93358.0,0.72391923]
[1745425949758,0.001,93359.0,93358.0,0.356]
[1745425949964,0.001,93359.0,93358.0,0.016]
[1745425950179,0.001,93359.0,93358.0,0.011]
[1745425951031,0.0491,93373.0,93371.0,0.21419856]
[1745425951243,0.00998924,93379.0,93375.0,0.22489802]
[1745425951458,0.01098924,93379.0,93376.0,0.22489663]
[1745425951669,0.01098924,93379.0,93377.0,0.55418478]
[1745425951879,0.001,93379.0,93377.0,0.55418478]
[1745425952327,0.001,93379.0,93377.0,0.55418437]
[1745425953646,0.001,93379.0,93378.0,0.55617014]
[1745425953864,0.001,93379.0,93378.0,0.87227599]
[1745425955151,0.00046367,93384.0,93383.0,0.56871259]
[1745425955370,0.0004249,93421.0,93403.0,0.55412588]
[1745425955600,0.01011915,93404.0,93403.0,0.34]
[1745425959558,0.0471,93403.0,93386.0,0.01070824]
[1745425959807,0.10689014,93402.0,93381.0,0.21417507]
[1745425960026,0.08679284,93399.0,93370.0,0.37128097]
[1745425960238,0.08679284,93399.0,93362.0,0.10924]
[1745425960239,0.11063831,93398.0,93368.0,0.21420533]
[1745425960453,0.11063831,93398.0,93373.0,0.21419466]
[1745425960664,0.11063831,93398.0,93380.0,0.37128097]
[1745425960843,0.10689014,93398.0,93376.0,0.01070938]
[1745425961062,0.13087215,93398.0,93377.0,0.01070927]
[1745425961263,0.13087215,93398.0,93377.0,0.34]
[1745425961467,0.13087215,93398.0,93378.0,0.01170916]
[1745425961668,0.10689014,93398.0,93379.0,0.34]
[1745425962568,0.10689014,93398.0,91777.0,0.01]
[1745425962569,0.00374817,93397.0,93343.0,0.16422673]
[1745425962787,0.10689014,93396.0,93365.0,0.01071065]
[1745425963001,0.11673496,93396.0,93368.0,0.34]
[1745425963225,0.11673496,93396.0,93367.0,0.34]
[1745425963712,0.10689014,93388.0,93367.0,0.34]
[1745425964202,0.10924,93387.0,93367.0,0.34]
[1745425964435,0.10689014,93386.0,93361.0,0.34]
[1745425964916,0.10689014,93386.0,93367.0,0.002]
[1745425965145,0.00374888,93385.0,93367.0,0.002]
[1745425965370,0.10689014,93384.0,93367.0,0.002]
[1745425965610,0.00374889,93383.0,93367.0,0.004]
[1745425965841,0.13652953,93382.0,93360.0,0.01471122]
[1745425966073,0.0037489,93381.0,93367.0,0.002]
[1745425966286,0.10689014,93380.0,93367.0,0.002]
[1745425966503,0.0037489,93379.0,93367.0,0.002]
[1745425966720,0.12773986,93378.0,93367.0,0.002]
[1745425966933,0.0037489,93377.0,93367.0,0.002]
[1745425967138,0.10689014,93376.0,93367.0,0.002]
[1745425967361,0.00374889,93375.0,93367.0,0.002]
[1745425967594,0.047,93369.0,93367.0,0.002]
[1745425967825,0.047,93369.0,93328.0,0.0008474]
[1745425967826,0.14568466,93368.0,93330.0,0.37128097]
[1745425968055,0.10689014,93361.0,93330.0,0.37128097]
[1745425968274,0.16102998,93360.0,93330.0,0.37128097]
[1745425968509,0.16102998,93360.0,93328.0,0.0008474]
[1745425968510,0.10689014,93358.0,93328.0,0.0008474]
[1745425968742,0.11064024,93357.0,93328.0,0.0008474]
[1745425968930,0.0738958,93356.0,93330.0,0.37128097]
[1745425969166,0.11064027,93355.0,93330.0,0.37128097]
[1745425969613,0.10689014,93355.0,93347.0,0.21425263]
[1745425969848,0.10689014,93355.0,93346.0,0.34]
[1745425970102,0.10689014,93355.0,93346.0,0.56496929]
[1745425970330,0.001,93358.0,93357.0,0.55423139]
[1745425971460,0.00011905,93360.0,93359.0,0.5542268]
[1745425972986,0.00011905,93360.0,93359.0,0.34]
[1745425973427,0.00111905,93360.0,93359.0,0.34]
[1745425978029,0.00098754,93360.0,93359.0,0.34]
[1745425978276,0.10787768,93360.0,93331.0,0.002]
[1745425978518,0.10787768,93360.0,93346.0,0.01071283]
[1745425978754,0.10787768,93360.0,93346.0,0.35071283]
[1745425979184,0.10689014,93360.0,93351.0,0.34]
[1745425980087,0.10689014,93360.0,93351.0,0.15344049]
[1745425980346,0.10689014,93360.0,93347.0,0.01071271]
[1745425980347,0.00374921,93359.0,93346.0,0.002]
[1745425980566,0.10689014,93359.0,93351.0,0.001]
[1745425981413,0.10689014,93359.0,93346.0,0.002]
[1745425981716,0.10689014,93359.0,93346.0,0.01171283]
[1745425981924,0.02424328,93358.0,93346.0,0.001]
[1745425982131,0.10689014,93357.0,93346.0,0.001]
[1745425982344,0.00374969,93356.0,93346.0,0.001]
[1745425982554,0.10689014,93355.0,93346.0,0.001]
[1745425982754,0.0037497,93354.0,93346.0,0.002]
[1745425983020,0.10689014,93353.0,93346.0,0.002]
[1745425983406,0.01481368,93352.0,93346.0,0.001]
[1745425983609,0.10689014,93351.0,93346.0,0.001]
[1745425983977,0.10689014,93351.0,93345.0,0.0008498]
[1745425984379,0.0493,93349.0,93345.0,0.0008498]
[1745425984561,0.11064024,93348.0,93345.0,0.0008498]
[1745425984767,0.10689014,93348.0,93345.0,0.0008498]
[1745425985826,0.00375009,93347.0,93345.0,0.0008498]
[1745425986030,0.15449014,93346.0,93345.0,0.0008498]
[1745425988052,0.16224021,93346.0,93345.0,0.0008498]
[1745425988283,0.16624021,93346.0,93345.0,0.0008498]
[1745425988504,0.19831023,93346.0,93345.0,0.0008498]
[1745425988713,0.19456016,93346.0,93345.0,0.0008498]
[1745425989369,0.2182524,93346.0,93345.0,0.0008498]
[1745425989495,0.21450194,93346.0,93345.0,0.0008498]
[1745425989700,0.18243192,93346.0,93345.0,0.0008498]
[1745425989905,0.18618237,93346.0,93345.0,0.0008498]
[1745425990129,0.58592322,93346.0,93345.0,0.0008498]
[1745425990347,0.58217277,93346.0,93345.0,0.0008498]
[1745425990506,0.59215038,93346.0,93345.0,0.0008498]
[1745425990707,0.62991872,93346.0,93345.0,0.0008498]
[1745425990908,0.57760953,93346.0,93345.0,0.0008498]
[1745425991114,0.56960953,93346.0,93345.0,0.0008498]
[1745425991340,0.57660953,93346.0,93345.0,0.0008498]
[1745425991507,0.58260953,93346.0,93345.0,0.0008498]
[1745425991745,0.57560953,93346.0,93345.0,0.0008498]
[1745425992132,0.58260953,93346.0,93345.0,0.0008498]
[1745425992381,0.24260953,93346.0,93345.0,0.0008498]
[1745425992763,0.14980953,93346.0,93345.0,0.0008498]
[1745425992977,0.12986775,93346.0,93345.0,0.0008498]
[1745425993205,0.14285453,93346.0,93345.0,0.0008498]
[1745425993432,0.12687692,93346.0,93345.0,0.0008498]
[1745425993668,0.11389014,93346.0,93345.0,0.0008498]
[1745425993888,0.10689014,93346.0,93345.0,0.0008498]
[1745425994328,0.11464037,93346.0,93345.0,0.0008498]
[1745425994513,0.11764037,93346.0,93345.0,0.0008498]
[1745425994718,0.11464037,93346.0,93345.0,0.0008498]
[1745425995387,0.12509635,93346.0,93345.0,0.0008498]
[1745425995604,0.11064037,93346.0,93345.0,0.0008498]
[1745425996052,0.55898122,93346.0,93345.0,0.0008498]
[1745425996274,0.57517277,93346.0,93345.0,0.0008498]
[1745425996480,0.40194085,93345.0,93333.0,0.0008498]
[1745425996717,0.10689014,93337.0,93333.0,0.0008498]
[1745425996944,0.00375083,93336.0,93333.0,0.0008498]
[1745425997156,0.13680953,93335.0,93333.0,0.0008498]
[1745425997409,0.00375082,93334.0,93333.0,0.0008498]
[1745425997660,0.11064096,93334.0,93333.0,0.0008498]
[1745425997890,0.13058274,93334.0,93333.0,0.0008498]
[1745425998357,0.12683192,93334.0,93333.0,0.0008498]
[1745425998776,0.10689014,93334.0,93333.0,0.0008498]
[1745425999824,0.10889014,93334.0,93333.0,0.0008498]
[1745425999996,0.004,93334.0,93333.0,0.0008498]
[1745426000973,0.004,93334.0,93333.0,0.21513627]
[1745426001192,0.004,93334.0,93333.0,0.55513627]
[1745426001896,0.004,93334.0,93333.0,0.55613627]
[1745426002105,0.004,93334.0,93333.0,0.60133627]
[1745426002675,0.00998314,93367.0,93346.0,0.01071283]
[1745426002885,0.10689014,93366.0,93346.0,0.35071283]
[1745426003120,0.10689014,93366.0,93346.0,0.34]
[1745426003333,0.00374935,93365.0,93346.0,0.34]
[1745426003542,0.10689014,93364.0,93346.0,0.34]
[1745426003738,0.00374935,93363.0,93346.0,0.34]
[1745426003949,0.10689014,93362.0,93346.0,0.341]
[1745426004171,0.00374935,93361.0,93346.0,0.002]
[1745426004372,0.126638,93360.0,93346.0,0.001]
[1745426004577,0.10689014,93360.0,93346.0,0.001]
[1745426004792,0.10689014,93360.0,93346.0,0.002]
[1745426005387,0.00374961,93359.0,93346.0,0.002]
[1745426005588,0.10689014,93358.0,93346.0,0.002]
[1745426005796,0.01581214,93357.0,93346.0,0.002]
[1745426005966,0.10689014,93356.0,93346.0,0.001]
[1745426006176,0.00374985,93355.0,93346.0,0.002]
[1745426006370,0.046,93353.0,93346.0,0.002]
[1745426006578,0.11064021,93352.0,93346.0,0.002]
[1745426006783,0.11064021,93352.0,93346.0,0.001]
[1745426006987,0.11064021,93352.0,93331.0,0.002]
[1745426007435,0.05848314,93351.0,93331.0,0.002]
[1745426007678,0.11064036,93350.0,93331.0,0.002]
[1745426008543,0.00747451,93349.0,93331.0,0.002]
[1745426008759,0.12062356,93348.0,93331.0,0.002]
[1745426009569,0.12062356,93348.0,93333.0,0.0058498]
[1745426009771,0.11687328,93348.0,93333.0,0.0058498]
[1745426009999,0.00998314,93347.0,93333.0,0.0038498]
[1745426010212,0.11064039,93346.0,93333.0,0.0038498]
[1745426010417,0.0285798,93345.0,93333.0,0.0038498]
[1745426010656,0.1106405,93344.0,93333.0,0.0038498]
[1745426010863,0.1106405,93344.0,93333.0,0.0008498]
[1745426011292,0.10689014,93342.0,93333.0,0.0008498]
[1745426011500,0.10689014,93339.0,93333.0,0.0008498]
[1745426011781,0.10689014,93334.0,93333.0,0.0008498]
[1745426012050,0.11064108,93334.0,93333.0,0.0008498]
[1745426012273,0.11687328,93334.0,93333.0,0.0008498]
[1745426012498,0.13688563,93334.0,93333.0,0.0008498]
[1745426012917,0.14436014,93334.0,93333.0,0.0008498]
[1745426013147,0.14740643,93334.0,93333.0,0.0008498]
[1745426013365,0.14940643,93334.0,93333.0,0.0008498]
[1745426013575,0.17274797,93334.0,93333.0,0.0008498]
[1745426014000,0.22224797,93334.0,93333.0,0.0008498]
[1745426014207,0.21849707,93334.0,93333.0,0.0008498]
[1745426014637,0.19890643,93334.0,93333.0,0.0008498]
[1745426014798,0.20265743,93334.0,93333.0,0.0008498]
[1745426015030,0.19890643,93334.0,93333.0,0.0008498]
[1745426015625,0.21719822,93334.0,93333.0,0.0008498]
[1745426015831,0.21444728,93334.0,93333.0,0.0008498]
[1745426016048,0.24459327,93334.0,93333.0,0.0008498]
[1745426016256,0.24084201,93334.0,93333.0,0.0008498]
[1745426017388,0.34988201,93334.0,93333.0,0.0008498]
[1745426018629,0.32348728,93334.0,93333.0,0.0008498]
[1745426019283,0.30894643,93334.0,93333.0,0.0008498]
[1745426019758,0.25944643,93334.0,93333.0,0.0008498]
[1745426019974,0.23195957,93334.0,93333.0,0.0008498]
[1745426020216,0.23195957,93334.0,93333.0,0.21513627]
[1745426020217,0.12291957,93334.0,93333.0,0.21513627]
[1745426020436,0.01602943,93334.0,93333.0,0.55513627]
[1745426020895,0.00604629,93334.0,93333.0,0.55513627]
[1745426021344,0.11293643,93334.0,93333.0,0.3408498]
[1745426021778,0.10993643,93334.0,93333.0,0.0008498]
[1745426022005,0.12560007,93334.0,93333.0,0.0008498]
[1745426022217,0.10893643,93334.0,93333.0,0.0018498]
[1745426022435,0.10693643,93334.0,93333.0,0.0018498]
[1745426022638,0.11068729,93334.0,93333.0,0.0028498]
[1745426022851,0.11068729,93334.0,93333.0,0.0018498]
[1745426023058,0.10693643,93334.0,93333.0,0.0018498]
[1745426023260,0.10893643,93334.0,93333.0,0.0008498]
[1745426023484,0.10993643,93334.0,93333.0,0.0008498]
[1745426024983,0.10893643,93334.0,93333.0,0.0008498]
[1745426025198,0.11193643,93334.0,93333.0,0.0008498]
[1745426025410,0.13699931,93334.0,93333.0,0.0008498]
[1745426025622,0.11193643,93334.0,93333.0,0.0008498]
[1745426026093,0.11568736,93334.0,93333.0,0.0008498]
[1745426026721,0.11193643,93334.0,93333.0,0.0008498]
[1745426026936,0.12191957,93334.0,93333.0,0.0008498]
[1745426027641,0.11193643,93334.0,93333.0,0.0008498]
[1745426028937,0.1156874,93334.0,93333.0,0.0008498]
[1745426029154,0.11193643,93334.0,93333.0,0.0008498]
[1745426029572,0.11189014,93334.0,93333.0,0.0008498]
[1745426029844,0.10689014,93334.0,93333.0,0.0008498]
[1745426033407,0.15358598,93346.0,93333.0,0.0008498]
[1745426033681,0.10689014,93345.0,93333.0,0.00131347]
[1745426034320,0.02979778,93344.0,93333.0,0.00131347]
[1745426034534,0.10689014,93343.0,93333.0,0.00131347]
[1745426036094,0.00375049,93342.0,93333.0,0.00131347]
[1745426036333,0.10689014,93341.0,93333.0,0.00131347]
[1745426036712,0.00375051,93340.0,93333.0,0.00131347]
[1745426036920,0.10689014,93339.0,93333.0,0.00131347]
[1745426038636,0.11264065,93339.0,93333.0,0.00131347]
[1745426039156,0.10889014,93339.0,93333.0,0.00131347]
[1745426040027,0.11089014,93339.0,93333.0,0.00131347]
[1745426040526,0.11089014,93339.0,93336.0,0.01071397]
[1745426040527,0.004,93339.0,93336.0,0.01071397]
[1745426040760,0.004,93339.0,93338.0,0.215275]
[1745426040973,0.004,93339.0,93338.0,0.0467]
[1745426041188,0.004,93339.0,93335.0,0.0488]
[1745426041443,0.002,93339.0,93333.0,0.00231347]
[1745426041669,0.003,93339.0,93333.0,0.00231347]
[1745426042097,0.006,93339.0,93333.0,0.00231347]
[1745426042304,0.003,93339.0,93333.0,0.00231347]
[1745426042510,0.003,93339.0,93335.0,0.002]
[1745426042961,0.0100118,93359.0,93335.0,0.002]
[1745426043164,0.10689014,93358.0,93335.0,0.002]
[1745426043383,0.11064004,93358.0,93335.0,0.002]
[1745426043589,0.02296918,93357.0,93335.0,0.002]
[1745426043812,0.10689014,93356.0,93340.0,0.3716671]
[1745426044296,0.00374975,93355.0,93337.0,0.001]
[1745426044529,0.10689014,93354.0,93337.0,0.001]
[1745426045852,0.10689014,93354.0,93337.0,0.002]
[1745426046069,0.00374977,93353.0,93337.0,0.002]
[1745426046289,0.10689014,93352.0,93337.0,0.003]
[1745426046508,0.05984085,93350.0,93337.0,0.002]
[1745426046716,0.01454085,93347.0,93337.0,0.002]
[1745426046939,0.10689014,93338.0,93337.0,0.002]
[1745426047149,0.17048192,93338.0,93337.0,0.002]
[1745426047565,0.10689014,93338.0,93337.0,0.001]
[1745426047988,0.01000799,93338.0,93337.0,0.001]
[1745426048665,0.003,93338.0,93333.0,0.00231347]
[1745426048877,0.006,93338.0,93333.0,0.00231347]
[1745426049668,0.003,93338.0,93333.0,0.00231347]
[1745426049927,0.005,93338.0,93333.0,0.00231347]
[1745426050138,0.10689014,93337.0,93333.0,0.00131347]
[1745426050308,0.01493956,93336.0,93333.0,0.00131347]
[1745426050514,0.12143099,93334.0,93333.0,0.00131347]
[1745426050663,0.25937512,93334.0,93333.0,0.00131347]
[1745426050868,0.26563258,93334.0,93333.0,0.00131347]
[1745426051318,0.17883974,93334.0,93333.0,0.00131347]
[1745426051760,0.18483974,93334.0,93333.0,0.00131347]
[1745426051973,0.18983974,93334.0,93333.0,0.00131347]
[1745426052183,0.18383974,93334.0,93333.0,0.00131347]
[1745426052386,0.23762167,93334.0,93333.0,0.00131347]
[1745426052604,0.23987031,93334.0,93333.0,0.00131347]
[1745426053672,0.23987031,93334.0,93328.0,0.0008474]
[1745426053673,0.40204085,93329.0,93328.0,0.0008474]
[1745426053930,0.40204085,93329.0,93300.0,0.0008476]
[1745426053931,0.01454085,93316.0,93300.0,0.0008476]
[1745426054160,0.46143099,93308.0,93307.0,0.00096885]
[1745426054393,0.72389697,93308.0,93307.0,0.00096885]
[1745426054612,0.77219697,93308.0,93307.0,0.00096885]
[1745426055056,0.78220572,93308.0,93307.0,0.00096885]
[1745426055476,0.80217947,93308.0,93307.0,0.00096885]
[1745426055697,0.80517947,93308.0,93307.0,0.00096885]
[1745426055916,0.91206961,93308.0,93307.0,0.00096885]
[1745426056139,0.80517947,93308.0,93307.0,0.00096885]
[1745426056382,0.41987947,93308.0,93307.0,0.00096885]
[1745426056596,0.38536487,93308.0,93307.0,0.00096885]
[1745426057089,0.39990572,93308.0,93307.0,0.00096885]
[1745426057301,0.38989697,93308.0,93307.0,0.00096885]
[1745426060174,0.46100667,93308.0,93307.0,0.00096885]
[1745426060580,0.38989697,93308.0,93307.0,0.00096885]
[1745426062698,0.28101697,93308.0,93307.0,0.00096885]
[1745426062917,0.38993697,93308.0,93307.0,0.00096885]
[1745426063368,0.77973697,93308.0,93307.0,0.00096885]
[1745426064016,0.77673697,93308.0,93307.0,0.00096885]
[1745426064222,0.88362711,93308.0,93307.0,0.00096885]
[1745426064489,0.35454085,93307.0,93261.0,0.34]
[1745426064698,0.10689014,93288.0,93261.0,0.34]
[1745426064905,0.00375293,93287.0,93261.0,0.3404645]
[1745426065121,0.34,93285.0,93261.0,0.0004645]
[1745426065344,0.34,93283.0,93261.0,0.0004645]
[1745426065553,0.10689014,93282.0,93261.0,0.0044645]
[1745426065977,0.10689014,93282.0,93261.0,0.0004645]
[1745426066186,0.10689014,93282.0,93261.0,0.0044645]
[1745426066627,0.10689014,93282.0,93261.0,0.0094645]
[1745426066836,0.10789014,93282.0,93270.0,0.3716671]
[1745426067269,0.10789014,93282.0,93276.0,0.01072087]
[1745426067479,0.10789014,93282.0,93277.0,0.0474]
[1745426067692,0.10889014,93282.0,93277.0,0.0474]
[1745426068122,0.10689014,93282.0,93277.0,0.0474]
[1745426069505,0.10892,93301.0,93283.0,0.01072006]
[1745426069726,0.10689014,93300.0,93291.0,0.3716671]
[1745426070610,0.10689014,93300.0,93290.0,0.3716671]
[1745426070845,0.10689014,93300.0,93283.0,0.003]
[1745426070846,0.11064201,93300.0,93283.0,0.003]
[1745426071061,0.10689014,93300.0,93283.0,0.00313916]
[1745426071277,0.10689014,93300.0,93291.0,0.003]
[1745426071741,0.10689014,93300.0,93291.0,0.005]
[1745426071950,0.00375219,93299.0,93291.0,0.005]
[1745426072209,0.10689014,93298.0,93291.0,0.002]
[1745426072637,0.0037522,93297.0,93291.0,0.002]
[1745426072857,0.10689014,93296.0,93291.0,0.002]
[1745426074252,0.10689014,93296.0,93283.0,0.00013916]
[1745426074458,0.10689014,93296.0,93291.0,0.003]
[1745426074940,0.10689014,93296.0,93286.0,0.3716671]
[1745426075141,0.10689014,93296.0,93291.0,0.002]
[1745426075810,0.10678827,93296.0,93291.0,0.002]
[1745426076043,0.10678827,93296.0,93286.0,0.3716671]
[1745426076246,0.10678827,93296.0,93286.0,0.3746671]
[1745426077426,0.10678827,93296.0,93286.0,0.3766671]
[1745426078040,0.10678827,93296.0,93286.0,0.3736671]
[1745426078361,0.15358598,93308.0,93291.0,0.002]
[1745426078590,0.10689014,93307.0,93298.0,0.7433342]
[1745426079359,0.10689014,93307.0,93298.0,0.75405254]
[1745426079562,0.10689014,93307.0,93298.0,0.7433342]
[1745426079764,0.10689014,93307.0,93298.0,0.3716671]
[1745426080002,0.10689014,93307.0,93296.0,0.001]
[1745426080217,0.10789014,93307.0,93297.0,0.3716671]
[1745426080887,0.10689014,93307.0,93297.0,0.3716671]
[1745426081133,0.10789014,93307.0,93297.0,0.3716671]
[1745426081348,0.001,93307.0,93298.0,0.001]
[1745426082215,0.10689014,93306.0,93293.0,0.001]
[1745426082469,0.1106417,93306.0,93293.0,0.001]
[1745426082677,0.1106417,93306.0,93283.0,0.00013916]
[1745426082678,0.47143961,93305.0,93283.0,0.00013916]
[1745426082894,0.10689014,93303.0,93283.0,0.00013916]
[1745426083131,0.00375233,93302.0,93283.0,0.00013916]
[1745426083360,0.12944416,93301.0,93283.0,0.00013916]
[1745426083582,0.00375223,93300.0,93283.0,0.00013916]
[1745426083777,0.10689014,93299.0,93283.0,0.00013916]
[1745426084420,0.10689014,93299.0,93283.0,0.00313916]
[1745426084641,0.00375223,93298.0,93283.0,0.00313916]
[1745426084849,0.10689014,93297.0,93293.0,0.001]
[1745426085081,0.34375222,93296.0,93293.0,0.001]
[1745426085305,0.50713099,93294.0,93293.0,0.001]
[1745426085539,0.66071697,93294.0,93293.0,0.001]
[1745426085761,0.39954085,93293.0,93283.0,0.00313916]
[1745426085991,0.46143099,93284.0,93283.0,0.00313916]
[1745426086212,0.61501697,93284.0,93283.0,0.00013916]
[1745426086412,0.61501697,93284.0,93283.0,0.00213916]
[1745426086619,0.60047612,93284.0,93283.0,0.00213916]
[1745426087034,0.61048487,93284.0,93283.0,0.00013916]
[1745426087259,0.61248487,93284.0,93283.0,0.00013916]
[1745426087742,0.61048487,93284.0,93283.0,0.00013916]
[1745426087941,0.61148487,93284.0,93283.0,0.00013916]
[1745426088158,0.61448487,93284.0,93283.0,0.00013916]
[1745426088589,0.61648487,93284.0,93283.0,0.00013916]
[1745426089050,0.67813336,93284.0,93283.0,0.00013916]
[1745426089499,0.61648487,93284.0,93283.0,0.00013916]
[1745426091012,0.38524487,93284.0,93283.0,0.00013916]
[1745426091216,0.23165889,93284.0,93283.0,0.00013916]
[1745426092491,0.25167297,93284.0,93283.0,0.00013916]
[1745426093139,0.14291297,93284.0,93283.0,0.00013916]
[1745426093384,0.01600875,93284.0,93283.0,0.04733916]
[1745426093596,0.01600875,93284.0,93283.0,0.09583916]
[1745426093873,0.006,93284.0,93283.0,0.09782905]
[1745426094112,0.003,93284.0,93283.0,0.43782905]
[1745426094333,0.001,93297.0,93291.0,0.01071914]
[1745426094775,0.001,93297.0,93289.0,0.01071937]
[1745426094999,0.001,93297.0,93291.0,0.001]
[1745426095248,0.001,93297.0,93296.0,0.001]
[1745426095454,0.001,93297.0,93291.0,0.001]
[1745426095667,0.001,93297.0,93296.0,0.001]
[1745426097332,0.001,93297.0,93296.0,0.006]
[1745426099212,0.001,93297.0,93296.0,0.005]
[1745426099658,0.001,93297.0,93296.0,0.006]
[1745426099867,0.001,93297.0,93296.0,0.005]
[1745426100524,0.001,93297.0,93296.0,0.006]
[1745426101584,0.001,93297.0,93296.0,0.346]
[1745426101786,0.001,93297.0,93296.0,0.56037146]
[1745426102225,0.001,93297.0,93296.0,0.7153616]
[1745426102903,0.001,93297.0,93296.0,0.7133616]
[1745426103113,0.001,93297.0,93296.0,0.60347146]
[1745426103325,0.001,93297.0,93296.0,0.7153616]
[1745426103550,0.001,93297.0,93296.0,0.7680616]
[1745426108376,0.001,93297.0,93296.0,0.7630616]
[1745426108603,0.001,93297.0,93296.0,1.58781445]
[1745426108820,0.001,93297.0,93296.0,1.30195245]
[1745426109053,0.001,93297.0,93296.0,1.20807645]
[1745426109254,0.00021946,93297.0,93296.0,1.21207645]
[1745426109470,0.002,93329.0,93328.0,0.001]
[1745426109673,0.002,93329.0,93328.0,0.21529795]
[1745426110084,0.002,93329.0,93328.0,0.55529795]
[1745426110557,0.002,93329.0,93328.0,0.341]
[1745426110764,0.004,93329.0,93328.0,0.55543711]
[1745426111757,0.00386991,93329.0,93328.0,0.71182725]
[1745426111928,0.00386991,93329.0,93328.0,0.38963916]
[1745426112130,0.00386991,93329.0,93328.0,0.34113916]
[1745426112331,0.00286991,93329.0,93328.0,0.34113916]
[1745426112540,0.00486991,93329.0,93328.0,0.34113916]
[1745426112969,0.00486991,93329.0,93328.0,0.34013916]
[1745426113177,0.00286991,93329.0,93328.0,0.34013916]
[1745426113522,0.00186991,93329.0,93328.0,0.34013916]
[1745426113652,0.00186991,93329.0,93328.0,0.34113916]
[1745426114071,0.00186991,93329.0,93328.0,0.34313916]
[1745426114462,0.00186991,93329.0,93328.0,0.34113916]
[1745426115127,0.00186991,93329.0,93328.0,0.00013916]
[1745426115338,0.10876005,93329.0,93328.0,0.00013916]
[1745426115567,0.11076005,93329.0,93328.0,0.00013916]
[1745426115779,0.17800206,93329.0,93328.0,0.00013916]
[1745426116080,0.16151098,93329.0,93328.0,0.00013916]
[1745426116490,0.16051098,93329.0,93328.0,0.00013916]
[1745426116720,0.16151098,93329.0,93328.0,0.00013916]
[1745426117027,0.15776005,93329.0,93328.0,0.00013916]
[1745426117413,0.16176005,93329.0,93328.0,0.00013916]
[1745426117619,0.15776005,93329.0,93328.0,0.00013916]
[1745426118042,0.16176005,93329.0,93328.0,0.00013916]
[1745426118611,0.16076005,93329.0,93328.0,0.00013916]
[1745426118798,0.16851078,93329.0,93328.0,0.00013916]
[1745426119012,0.16476005,93329.0,93328.0,0.00013916]
[1745426120591,0.16834967,93329.0,93311.0,0.33913912]
[1745426120822,0.10689014,93328.0,93311.0,0.33918541]
[1745426121182,0.00375073,93327.0,93311.0,0.33918541]
[1745426121390,0.10689014,93326.0,93311.0,0.33918541]
[1745426121594,0.00375091,93325.0,93311.0,0.33918541]
[1745426121825,0.10689014,93324.0,93311.0,0.33918541]
[1745426123563,0.10689014,93324.0,93311.0,0.00104629]
[1745426123564,0.11064105,93324.0,93311.0,0.00104629]
[1745426123783,0.11064105,93324.0,93311.0,4.629e-05]
[1745426123784,0.10689014,93315.0,93311.0,4.629e-05]
[1745426123956,0.01454085,93319.0,93296.0,0.00013009]
[1745426123957,0.01454085,93311.0,93296.0,0.00013009]
[1745426124203,0.10689014,93302.0,93296.0,0.00013009]
[1745426124414,0.11227228,93301.0,93296.0,0.00026935]
[1745426124618,0.10689014,93300.0,93296.0,0.00026935]
[1745426124819,0.00375228,93299.0,93296.0,0.00026935]
[1745426125025,0.10689014,93298.0,93296.0,0.00026935]
[1745426125231,0.00375227,93297.0,93296.0,0.00026935]
[1745426125447,0.11064241,93297.0,93296.0,0.00026935]
[1745426125833,0.12060401,93297.0,93296.0,0.00026935]
[1745426126810,0.12185174,93297.0,93296.0,0.00026935]
[1745426127032,0.005,93297.0,93296.0,0.00026935]
[1745426127434,0.009,93297.0,93296.0,0.00026935]
[1745426128847,0.004,93297.0,93296.0,0.00026935]
[1745426129093,0.003,93297.0,93296.0,0.00026935]
[1745426129285,0.006,93297.0,93296.0,0.00026935]
[1745426130037,0.006,93297.0,93296.0,0.34026935]
[1745426130907,0.006,93297.0,93296.0,0.34013926]
[1745426131351,0.006,93297.0,93296.0,0.00013926]
[1745426132411,0.10856,93316.0,93296.0,0.00013926]
[1745426132616,0.10689014,93315.0,93301.0,0.34]
[1745426133333,0.08679284,93313.0,93296.0,0.00013926]
[1745426133553,0.01454085,93311.0,93296.0,0.00013926]
[1745426133771,0.15379014,93312.0,93296.0,0.00013926]
[1745426133772,0.15409014,93302.0,93296.0,0.00013926]
[1745426133990,0.12143099,93297.0,93296.0,0.00013926]
[1745426134203,0.19700134,93297.0,93296.0,0.00013926]
[1745426134801,0.2169692,93297.0,93296.0,0.00013926]
[1745426134986,0.2269308,93297.0,93296.0,0.00013926]
[1745426135180,0.22317809,93297.0,93296.0,0.00013926]
[1745426135651,0.19726045,93297.0,93296.0,0.00013926]
[1745426135895,0.21601326,93297.0,93296.0,0.00113926]
[1745426136106,0.1960454,93297.0,93296.0,0.00113926]
[1745426137107,0.13185174,93297.0,93296.0,0.00113926]
[1745426137732,0.12189014,93297.0,93296.0,0.00113926]
[1745426138573,0.10689014,93297.0,93296.0,0.00013926]
[1745426138808,0.11089014,93297.0,93296.0,0.00013926]
[1745426139013,0.009,93297.0,93296.0,0.00013926]
[1745426140258,0.005,93297.0,93296.0,0.00013926]
[1745426140608,0.005,93297.0,93290.0,0.01114426]
[1745426140824,0.00513903,93297.0,93291.0,0.01071914]
[1745426141189,0.00013903,93297.0,93290.0,0.01114426]
[1745426141380,0.00313903,93297.0,93290.0,0.01114426]
[1745426141581,0.00513903,93297.0,93293.0,0.01071891]
[1745426141797,0.00213903,93297.0,93290.0,0.000425]
[1745426142008,0.00313903,93297.0,93296.0,0.21437146]
[1745426142210,0.00513903,93297.0,93295.0,0.21437328]
[1745426142414,0.00213903,93297.0,93294.0,0.0107188]
[1745426142624,0.00113903,93297.0,93294.0,0.0107188]
[1745426142837,0.00113903,93297.0,93295.0,0.21437327]